fUSD/lending_fUSD_20240630
["ID","MTS","AMOUNT","RATE_DAILY","PERIOD"]
[330723600,1719737436027,-500.0,0.00013999,3]
[330723601,1719737436037,-500.0,0.00013999,3]
[330723602,1719737436046,-500.0,0.00013999,3]
[330723603,1719737436055,-500.0,0.00013999,3]
[330723604,1719737436064,-500.0,0.00013999,3]
[330723605,1719737436074,-500.0,0.00013999,3]
[330723606,1719737436084,-500.0,0.00013999,3]
[330723607,1719737436094,-500.91479986,0.00013999,3]
[330723608,1719737436104,-500.0,0.00013999,3]
[330723609,1719737436113,-500.0,0.00013999,3]
[330723610,1719737436123,-500.0,0.00013999,3]
[330723611,1719737436132,-501.36391717,0.00013999,3]
[330723612,1719737436141,-991.49,0.00013999,3]
[330723613,1719737436150,-500.0,0.00013999,3]
[330723614,1719737436160,-503.90702962,0.00013999,3]
[330723615,1719737436169,-500.0,0.00013999,3]
[330723616,1719737436178,-712.11,0.00013999,3]
[330723617,1719737436187,-500.72143934,0.00013999,3]
[330723618,1719737436196,-500.0,0.00013999,3]
[330723619,1719737436205,-500.0,0.00013999,3]
[330723620,1719737436215,-500.0,0.00013999,3]
[330723621,1719737436224,-502.08396183,0.00013999,3]
[330723622,1719737436234,-500.0,0.00013999,3]
[330723623,1719737436243,-500.0,0.00013999,3]
[330723624,1719737436252,-500.0,0.00013999,3]
[330723625,1719737436262,-1283.2,0.00013999,3]
[330723626,1719737436271,-500.0,0.00013999,3]
[330723627,1719737436280,-500.0,0.00013999,3]
[330723628,1719737436289,-686.01,0.00013999,3]
[330723629,1719737436298,-501.08063525,0.00013999,3]
[330723630,1719737436307,-500.74574337,0.00013999,3]
[330723631,1719737436317,-500.0,0.00013999,3]
[330723632,1719737436326,-500.578726,0.00013999,3]
[330723633,1719737436336,-500.0,0.00013999,3]
[330723634,1719737436349,-500.0,0.00013999,3]
[330723635,1719737436359,-500.0,0.00013999,3]
[330723636,1719737436368,-1205.89,0.00013999,3]
[330723637,1719737436377,-502.29628335,0.00013999,3]
[330723638,1719737436386,-500.0,0.00013999,3]
[330723639,1719737436396,-500.0,0.00013999,3]
[330723640,1719737436405,-500.0,0.00013999,3]
[330723641,1719737436415,-500.0,0.00013999,3]
[330723642,1719737436424,-500.0,0.00013999,3]
[330723643,1719737436434,-500.0,0.00013999,3]
[330723644,1719737436446,-500.0,0.00013999,3]
[330723645,1719737436458,-500.0,0.00013999,3]
[330723646,1719737436467,-969.42,0.00013999,3]
[330723647,1719737436478,-500.0,0.00013999,3]
[330723648,1719737436489,-591.74,0.00013999,3]
[330723649,1719737436499,-732.52,0.00013999,3]
[330723650,1719737436510,-214.24406642,0.00013999,3]
[330723651,1719737436520,-500.0,0.00013999,3]
[330723652,1719737436530,-500.0,0.00013999,3]
[330723653,1719737436543,-500.0,0.00013999,3]
[330723654,1719737436554,-500.0,0.00013999,3]
[330723655,1719737436565,-815.74,0.00013999,3]
[330723656,1719737436575,-500.0,0.00013999,3]
[330723657,1719737436584,-1138.26,0.00013999,3]
[330723658,1719737436593,-501.56824512,0.00013999,3]
[330723659,1719737436602,-500.0,0.00013999,3]
[330723660,1719737436613,-500.62060013,0.00013999,3]
[330723661,1719737436623,-500.0,0.00013999,3]
[330723662,1719737436632,-500.0,0.00013999,3]
[330723663,1719737436643,-500.0,0.00013999,3]
[330723664,1719737436654,-500.99298163,0.00013999,3]
[330723665,1719737436664,-500.0,0.00013999,3]
[330723666,1719737436674,-500.0,0.00013999,3]
[330723667,1719737436684,-500.0,0.00013999,3]
[330723668,1719737436695,-500.0,0.00013999,3]
[330723669,1719737436705,-500.0,0.00013999,3]
[330723670,1719737436715,-500.0,0.00013999,3]
[330723671,1719737436726,-500.0,0.00013999,3]
[330723672,1719737436737,-500.0,0.00013999,3]
[330723673,1719737436749,-500.0,0.00013999,3]
[330723674,1719737436760,-500.89013144,0.00013999,3]
[330723675,1719737436770,-500.0,0.00013999,3]
[330723676,1719737436780,-586.61,0.00013999,3]
[330723677,1719737436790,-502.63715326,0.00013999,3]
[330723678,1719737436802,-500.0,0.00013999,3]
[330723679,1719737436814,-500.0,0.00013999,3]
[330723680,1719737436825,-500.0,0.00013999,3]
[330723681,1719737436834,-500.0,0.00013999,3]
[330723682,1719737436844,-662.15,0.00013999,3]
[330723683,1719737436854,-500.0,0.00013999,3]
[330723684,1719737436868,-502.39635198,0.00013999,3]
[330723685,1719737436880,-500.0,0.00013999,3]
[330723686,1719737437080,-500.86243511,0.00013999,3]
[330723687,1719737437090,-1042.0,0.00013999,3]
[330723688,1719737437100,-500.61263291,0.00013999,3]
[330723689,1719737437109,-500.0,0.00013999,3]
[330723690,1719737437118,-833.93,0.00013999,3]
[330723691,1719737437128,-500.0,0.00013999,3]
[330723692,1719737437138,-728.98,0.00013999,3]
[330723693,1719737437151,-500.0,0.00013999,3]
[330723694,1719737437160,-500.0,0.00013999,3]
[330723695,1719737437170,-500.0,0.00013999,3]
[330723696,1719737437180,-500.0,0.00013999,3]
[330723697,1719737437189,-500.0,0.00013999,3]
[330723698,1719737437198,-500.0,0.00013999,3]
[330723699,1719737437208,-633.65,0.00013999,3]
[330723700,1719737437217,-500.0,0.00013999,3]
[330723701,1719737437227,-500.0,0.00013999,3]
[330723702,1719737437236,-500.0,0.00013999,3]
[330723703,1719737437245,-500.0,0.00013999,3]
[330723704,1719737437255,-500.0,0.00013999,3]
[330723705,1719737437264,-599215.59867128,0.00014,2]
[330723706,1719737437287,-223181.65928962,0.00014,2]
[330723707,1719737437299,-4228.0863352,0.00014,2]
[330723708,1719737437327,-8980.97957088,0.00014,2]
[330723709,1719737437339,-1111.46103322,0.00014,2]
[330723710,1719737437351,-328.8373251,0.00014,2]
[330723711,1719737437368,-363.6,0.00014,2]
[330723712,1719737437380,-1085.42033485,0.00014,2]
[330723713,1719737437392,-75673.16446411,0.00014,2]
[330723714,1719737437403,-32980.41639929,0.00014,2]
[330723715,1719737437415,-385.01912969,0.00014,2]
[330723716,1719737437443,-7823.73689433,0.00014,2]
[330723727,1719737438798,-585.63,0.00013989,3]
[330723728,1719737438813,-500.0,0.00013999,3]
[330723729,1719737438822,-500.0,0.00013999,3]
[330723730,1719737438832,-500.0,0.00013999,3]
[330723731,1719737438842,-83.10738276,0.00013999,3]
[330723732,1719737438854,-416.89261724,0.00013999,3]
[330723733,1719737438864,-609.04084905,0.00014,2]
[330723734,1719737438876,-2084.0327375,0.00014,2]
[330723735,1719737438890,-2158.98320904,0.00014,2]
[330723736,1719737438908,-933.29810593,0.00014,2]
[330723737,1719737438961,-712.08271485,0.00014,2]
[330723738,1719737439043,-347.290002,0.00014,2]
[330723740,1719737440214,-500.0,0.00013998,3]
[330723741,1719737440225,-515.75187423,0.00013999,3]
[330723742,1719737440234,-2141.25728077,0.00014,2]
[330723743,1719737440246,-2191.28868631,0.00014,2]
[330723744,1719737440257,-939.63137312,0.00014,2]
[330723745,1719737440296,-902.16144431,0.00014,2]
[330723746,1719737440314,-3540.07767609,0.00014,2]
[330723747,1719737440380,-505.53116172,0.00014,2]
[330723748,1719737440392,-5870.46693832,0.00014,2]
[330723749,1719737440426,-22188.93974858,0.00014,2]
[330723758,1719737443151,-319.999995,0.00013998,3]
[330723759,1719737443162,-605.740005,0.00013998,3]
[330723760,1719737443172,-500.0,0.00013998,3]
[330723761,1719737443181,-205.04135019,0.00013999,3]
[330723762,1719737443192,-294.95864981,0.00013999,3]
[330723763,1719737443201,-358.35405711,0.00013999,3]
[330723764,1719737443218,-141.64594289,0.00013999,3]
[330723765,1719737443227,-500.0,0.00013999,3]
[330723766,1719737443236,-500.0,0.00013999,3]
[330723767,1719737443246,-7013.07374641,0.00014,2]
[330723768,1719737443286,-4065.83103481,0.00014,2]
[330723769,1719737443298,-1628.8462697,0.00014,2]
[330723770,1719737443356,-500.0,0.00013999,3]
[330723771,1719737443366,-469338.95336477,0.00014,2]
[330723772,1719737443377,-1539132.71995502,0.00014,2]
[330723773,1719737443387,-150.0,0.00014,2]
[330723774,1719737443398,-500.0,0.00014016,3]
[330723775,1719737443409,-500.0,0.00014016,3]
[330723776,1719737443418,-500.0,0.00014016,3]
[330723777,1719737443428,-500.0,0.00014016,3]
[330723778,1719737443438,-420.0,0.00014037,2]
[330723779,1719737443448,-500.0,0.00014106,3]
[330723780,1719737443458,-500.0,0.00014106,3]
[330723781,1719737443468,-500.0,0.00014106,3]
[330723782,1719737443478,-500.0,0.00014106,3]
[330723783,1719737443488,-500.0,0.00014106,3]
[330723784,1719737443497,-500.0,0.00014106,3]
[330723785,1719737443507,-500.0,0.00014106,3]
[330723786,1719737443518,-500.0,0.00014106,3]
[330723787,1719737443527,-535.59238104,0.00014106,3]
[330723788,1719737443537,-500.0,0.00014106,3]
[330723789,1719737443547,-500.0,0.00014106,3]
[330723790,1719737443556,-500.0,0.00014106,3]
[330723791,1719737443565,-500.0,0.00014106,3]
[330723792,1719737443574,-500.0,0.00014106,3]
[330723793,1719737443583,-500.0,0.00014106,3]
[330723794,1719737443592,-500.0,0.00014106,3]
[330723795,1719737443601,-500.0,0.00014106,3]
[330723796,1719737443610,-500.0,0.00014106,3]
[330723797,1719737443619,-554.3,0.00014106,3]
[330723798,1719737443629,-500.0,0.00014106,3]
[330723799,1719737443637,-500.0,0.00014106,3]
[330723800,1719737443647,-500.0,0.00014106,3]
[330723801,1719737443657,-500.0,0.00014106,3]
[330723802,1719737443665,-500.0,0.00014106,3]
[330723803,1719737443675,-500.0,0.00014106,3]
[330723804,1719737443684,-500.0,0.00014106,3]
[330723805,1719737443693,-588.22,0.00014106,3]
[330723806,1719737443702,-500.0,0.00014106,3]
[330723807,1719737443712,-500.0,0.00014106,3]
[330723808,1719737443721,-500.0,0.00014106,3]
[330723809,1719737443730,-500.0,0.00014106,3]
[330723810,1719737443740,-500.0,0.00014106,3]
[330723811,1719737443750,-500.0,0.00014106,3]
[330723812,1719737443759,-500.0,0.00014106,3]
[330723813,1719737443769,-500.0,0.00014106,3]
[330723814,1719737443779,-500.27758565,0.00014106,3]
[330723815,1719737443788,-500.993751,0.00014106,3]
[330723816,1719737443797,-500.0,0.00014106,3]
[330723817,1719737443808,-500.0,0.00014106,3]
[330723818,1719737443820,-500.0,0.00014106,3]
[330723819,1719737443829,-500.97032173,0.00014106,3]
[330723820,1719737443839,-500.0,0.00014106,3]
[330723821,1719737443849,-500.0,0.00014106,3]
[330723822,1719737443858,-500.0,0.00014106,3]
[330723823,1719737443867,-500.0,0.00014106,3]
[330723824,1719737443876,-500.0,0.00014106,3]
[330723825,1719737443887,-500.0,0.00014106,3]
[330723826,1719737443896,-500.0,0.00014106,3]
[330723827,1719737443905,-500.0,0.00014106,3]
[330723828,1719737443914,-500.0,0.00014106,3]
[330723829,1719737443923,-500.0,0.00014106,3]
[330723830,1719737443933,-500.40604367,0.00014106,3]
[330723831,1719737443941,-500.0,0.00014106,3]
[330723832,1719737443951,-500.0,0.00014106,3]
[330723833,1719737443960,-501.87743463,0.00014106,3]
[330723834,1719737443970,-500.0,0.00014106,3]
[330723835,1719737443979,-500.0,0.00014106,3]
[330723836,1719737443989,-500.0,0.00014106,3]
[330723837,1719737443997,-500.0,0.00014106,3]
[330723838,1719737444007,-500.0,0.00014106,3]
[330723839,1719737444018,-524.37,0.00014106,3]
[330723840,1719737444027,-500.0,0.00014106,3]
[330723841,1719737444041,-500.0,0.00014106,3]
[330723842,1719737444050,-500.0,0.00014106,3]
[330723843,1719737444059,-500.0,0.00014106,3]
[330723844,1719737444069,-500.0,0.00014106,3]
[330723845,1719737444078,-500.0,0.00014106,3]
[330723846,1719737444086,-500.0,0.00014106,3]
[330723847,1719737444096,-508.30862812,0.00014106,2]
[330723848,1719737444105,-500.0,0.00014106,3]
[330723849,1719737444114,-662.45,0.00014106,3]
[330723850,1719737444123,-500.0,0.00014106,3]
[330723851,1719737444132,-694.11,0.00014106,3]
[330723852,1719737444141,-515.33,0.00014106,3]
[330723853,1719737444150,-500.0,0.00014106,3]
[330723854,1719737444160,-500.0,0.00014106,3]
[330723855,1719737444169,-526.62,0.00014106,3]
[330723856,1719737444178,-677.66,0.00014106,3]
[330723857,1719737444188,-500.0,0.00014106,3]
[330723858,1719737444197,-500.0,0.00014106,3]
[330723859,1719737444206,-500.66925538,0.00014106,3]
[330723860,1719737444216,-500.0,0.00014106,3]
[330723861,1719737444225,-500.0,0.00014106,3]
[330723862,1719737444234,-500.0,0.00014106,3]
[330723863,1719737444244,-500.0,0.00014106,3]
[330723864,1719737444253,-502.16254658,0.00014106,3]
[330723865,1719737444266,-500.0,0.00014106,3]
[330723866,1719737444275,-500.0,0.00014106,3]
[330723867,1719737444284,-500.0,0.00014106,3]
[330723868,1719737444293,-351.73949547,0.00014106,3]
[330723869,1719737444302,-500.0,0.00014106,3]
[330723870,1719737444313,-500.0,0.00014106,3]
[330723871,1719737444322,-500.0,0.00014106,3]
[330723872,1719737444331,-500.0,0.00014106,3]
[330723873,1719737444340,-500.0,0.00014106,3]
[330723874,1719737444349,-500.0,0.00014106,3]
[330723875,1719737444359,-500.0,0.00014106,3]
[330723876,1719737444368,-500.0,0.00014106,3]
[330723877,1719737444378,-761.28,0.00014106,3]
[330723878,1719737444387,-500.0,0.00014106,3]
[330723879,1719737444396,-878.71,0.00014106,3]
[330723880,1719737444405,-500.0,0.00014106,3]
[330723881,1719737444415,-500.0,0.00014106,3]
[330723882,1719737444424,-602.79,0.00014106,3]
[330723883,1719737444433,-500.0,0.00014106,3]
[330723884,1719737444442,-500.0,0.00014106,3]
[330723885,1719737444451,-500.0,0.00014106,3]
[330723886,1719737444462,-500.0,0.00014106,3]
[330723887,1719737444472,-500.0,0.00014106,3]
[330723888,1719737444482,-500.0,0.00014106,3]
[330723889,1719737444491,-500.0,0.00014106,3]
[330723890,1719737444501,-615.74844196,0.00014106,3]
[330723891,1719737444513,-540.09,0.00014106,3]
[330723892,1719737444522,-500.0,0.00014106,3]
[330723893,1719737444532,-500.0,0.00014106,3]
[330723894,1719737444541,-848.28,0.00014106,3]
[330723895,1719737444550,-500.0,0.00014106,3]
[330723896,1719737444560,-500.0,0.00014106,3]
[330723897,1719737444569,-500.0,0.00014106,3]
[330723898,1719737444578,-946.42,0.00014106,3]
[330723899,1719737444587,-500.0,0.00014106,3]
[330723900,1719737444596,-500.0,0.00014106,3]
[330723901,1719737444606,-167.0,0.00014106,3]
[330723902,1719737444615,-500.0,0.00014106,3]
[330723903,1719737444624,-500.0,0.00014106,3]
[330723904,1719737444633,-760.26,0.00014106,3]
[330723905,1719737444643,-487.21624565,0.00014106,3]
[330723906,1719737444653,-500.0,0.00014106,3]
[330723907,1719737444662,-823.81,0.00014106,3]
[330723908,1719737444671,-500.0,0.00014106,3]
[330723909,1719737444680,-1027.63,0.00014106,3]
[330723910,1719737444690,-500.0,0.00014106,3]
[330723911,1719737444699,-1227.96,0.00014106,3]
[330723912,1719737444708,-583.88,0.00014106,3]
[330723913,1719737444717,-500.88550607,0.00014106,3]
[330723914,1719737444727,-500.0,0.00014106,3]
[330723915,1719737444736,-796.51,0.00014106,3]
[330723916,1719737444746,-500.0,0.00014106,3]
[330723917,1719737444755,-761.3,0.00014106,3]
[330723918,1719737444765,-501.09250526,0.00014106,3]
[330723919,1719737444775,-500.0,0.00014106,3]
[330723920,1719737444784,-500.0,0.00014106,3]
[330723921,1719737444793,-500.0,0.00014106,3]
[330723922,1719737444803,-765.63,0.00014106,3]
[330723923,1719737444818,-500.0,0.00014106,3]
[330723924,1719737444827,-500.0,0.00014106,3]
[330723925,1719737444836,-500.0,0.00014106,3]
[330723926,1719737444846,-500.60179367,0.00014106,3]
[330723927,1719737444855,-500.0,0.00014106,3]
[330723928,1719737444864,-500.0,0.00014106,3]
[330723929,1719737445023,-500.0,0.00014106,3]
[330723930,1719737445033,-500.0,0.00014106,3]
[330723931,1719737445041,-500.0,0.00014106,3]
[330723932,1719737445051,-500.0,0.00014106,3]
[330723933,1719737445061,-500.0,0.00014106,3]
[330723934,1719737445070,-500.0,0.00014106,3]
[330723935,1719737445079,-689.35,0.00014106,3]
[330723936,1719737445089,-638.12,0.00014106,3]
[330723937,1719737445098,-515.7,0.00014106,3]
[330723938,1719737445107,-500.0,0.00014106,3]
[330723939,1719737445117,-500.62175259,0.00014106,3]
[330723940,1719737445126,-500.0,0.00014106,3]
[330723941,1719737445136,-992.2,0.00014106,3]
[330723942,1719737445145,-500.0,0.00014106,3]
[330723943,1719737445155,-500.0,0.00014106,3]
[330723944,1719737445164,-568.39,0.00014106,3]
[330723945,1719737445174,-500.0,0.00014106,3]
[330723946,1719737445183,-862.26,0.00014106,3]
[330723947,1719737445193,-500.0,0.00014106,3]
[330723948,1719737445202,-500.0,0.00014106,3]
[330723949,1719737445212,-996.89,0.00014106,3]
[330723950,1719737445222,-500.0,0.00014106,3]
[330723951,1719737445232,-500.0,0.00014106,3]
[330723952,1719737445241,-500.0,0.00014106,3]
[330723953,1719737445251,-813.47,0.00014106,3]
[330723954,1719737445262,-1165.37,0.00014106,3]
[330723955,1719737445271,-500.0,0.00014106,3]
[330723956,1719737445281,-500.0,0.00014106,3]
[330723957,1719737445290,-500.0,0.00014106,3]
[330723958,1719737445300,-500.0,0.00014106,3]
[330723959,1719737445309,-500.0,0.00014106,3]
[330723960,1719737445319,-374.94319694,0.00014106,3]
[330723961,1719737445336,-125.05680306,0.00014106,3]
[330723962,1719737445345,-176.94319694,0.00014106,3]
[330723963,1719737445380,-580.22,0.00013999,3]
[330723964,1719737445390,-53.02,0.00014106,3]
[330723965,1719737445402,-270.03680306,0.00014106,3]
[330723966,1719737445411,-500.0,0.00014106,3]
[330723967,1719737445421,-500.0,0.00014106,3]
[330723968,1719737445430,-500.90030236,0.00014106,3]
[330723969,1719737445440,-1071.23,0.00014106,3]
[330723970,1719737445450,-697.27,0.00014106,3]
[330723971,1719737445460,-501.25791778,0.00014106,3]
[330723972,1719737445470,-1035.26,0.00014106,3]
[330723973,1719737445480,-500.0,0.00014106,3]
[330723974,1719737445489,-500.0,0.00014106,3]
[330723975,1719737445498,-500.0,0.00014106,3]
[330723976,1719737445507,-500.0,0.00014106,3]
[330723977,1719737445517,-500.0,0.00014106,3]
[330723978,1719737445527,-863.39,0.00014106,3]
[330723979,1719737445537,-764.82,0.00014106,3]
[330723980,1719737445546,-909.12,0.00014106,3]
[330723981,1719737445556,-500.0,0.00014106,3]
[330723982,1719737445565,-500.0,0.00014106,3]
[330723983,1719737445575,-500.0,0.00014106,3]
[330723984,1719737445585,-815.73,0.00014106,3]
[330723985,1719737445594,-500.0,0.00014106,3]
[330723986,1719737445604,-500.0,0.00014106,3]
[330723987,1719737445613,-500.0,0.00014106,3]
[330723988,1719737445623,-1039.95,0.00014106,3]
[330723989,1719737445632,-431.20391096,0.00014106,3]
[330723990,1719737445644,-68.79608904,0.00014106,3]
[330723991,1719737445653,-269.26163096,0.00014106,3]
[330723992,1719737445665,-265.6000002,0.00014106,3]
[330723995,1719737446152,-698.41,0.00013797,3]
[330723996,1719737446161,-500.96129058,0.00013999,3]
[330723997,1719737446171,-199.48023468,0.00014106,3]
[330723998,1719737446182,-257.93813416,0.00014106,3]
[330723999,1719737446192,-500.0,0.00014106,3]
[330724000,1719737446202,-529.35,0.00014106,2]
[330724001,1719737446211,-160.102197,0.00014106,3]
[330724002,1719737446223,-339.897803,0.00014106,3]
[330724003,1719737446233,-826.64662576,0.00014106,3]
[330724004,1719737446298,-219.51337424,0.00014106,3]
[330724005,1719737446307,-184.02049409,0.00014106,3]
[330724006,1719737446530,-542.50336538,0.00013907,3]
[330724007,1719737446541,-155.90663462,0.00013907,3]
[330724008,1719737446552,-315.97950591,0.00014106,3]
[330724009,1719737446562,-500.0,0.00014106,3]
[330724010,1719737446573,-500.0,0.00014106,2]
[330724011,1719737446583,-501.68,0.00014106,3]
[330724012,1719737446594,-557.26,0.00014106,3]
[330724013,1719737446603,-598.25,0.00014106,3]
[330724014,1719737446613,-250.0,0.00014106,3]
[330724015,1719737446622,-500.0,0.00014106,3]
[330724016,1719737446631,-241.2642644,0.00014106,3]
[330724017,1719737446643,-935.2557356,0.00014106,3]
[330724018,1719737446653,-500.0,0.00014106,3]
[330724019,1719737446663,-500.0,0.00014106,3]
[330724020,1719737446672,-500.0,0.00014106,3]
[330724021,1719737446682,-500.0,0.00014106,2]
[330724022,1719737446691,-788.29,0.00014106,3]
[330724023,1719737446701,-500.0,0.00014106,3]
[330724024,1719737446710,-227.0307201,0.00014106,3]
[330724025,1719737446722,-272.9692799,0.00014106,3]
[330724026,1719737446731,-500.0,0.00014106,3]
[330724027,1719737446742,-467.64732771,0.00014106,3]
[330724028,1719737446770,-32.35267229,0.00014106,3]
[330724029,1719737446780,-514.23,0.00014106,3]
[330724030,1719737446789,-151.62812489,0.00014106,3]
[330724031,1719737565723,150.0,0.00011055,2]
[330724032,1719737565747,150.0,0.00011055,2]
[330724033,1719737565772,150.0,0.00011055,2]
[330724034,1719737565795,93.58,0.00011055,2]
[330724038,1719737616385,2351.59838139,0.00011055,2]
[330724039,1719737820270,-164.42254988,0.00012273,2]
[330724040,1719737820314,-187.00528091,0.00012314,2]
[330724041,1719737820356,-696.61,0.00012745,2]
[330724042,1719737820399,-168.64,0.00012767,2]
[330724043,1719737820442,-173.17,0.00012772,2]
[330724044,1719737820485,-250.0,0.00012819,2]
[330724045,1719737820528,-3974.65537,0.00012928,2]
[330724046,1719737820570,-250.0,0.00012993,2]
[330724047,1719737820613,-2537.72,0.0001302,2]
[330724048,1719737820657,-450.32528097,0.00013128,2]
[330724049,1719737820700,-153.02,0.00013301,2]
[330724050,1719737820742,-543.58,0.00013319,2]
[330724051,1719737820783,-153.02,0.00013351,2]
[330724052,1719737820825,-153.02,0.000134,2]
[330724053,1719737820871,-153.02,0.0001345,2]
[330724054,1719737821193,-204.58,0.00013489,2]
[330724055,1719737821220,-153.02,0.00013499,2]
[330724056,1719737821246,-2837.315,0.00013522,2]
[330724057,1719737821272,-153.02,0.00013549,2]
[330724058,1719737821298,-153.02,0.00013598,2]
[330724059,1719737821325,-153.02,0.00013648,2]
[330724060,1719737821350,-153.02,0.00013697,2]
[330724061,1719737821375,-808.31,0.00013699,2]
[330724062,1719737821401,-347.64,0.00013699,2]
[330724063,1719737821426,-10000.0,0.00013699,2]
[330724064,1719737821450,-153.02,0.00013747,2]
[330724065,1719737821475,-153.02,0.00013796,2]
[330724066,1719737821500,-1216.77,0.00013797,3]
[330724067,1719737821525,-654.28,0.00013797,3]
[330724068,1719737821550,-3743.21,0.00013797,3]
[330724069,1719737821575,-155.32834952,0.00013802,2]
[330724070,1719737821601,-153.02,0.00013846,2]
[330724071,1719737821626,-153.02,0.00013895,2]
[330724072,1719737821651,-1826.53,0.00013899,2]
[330724073,1719737821675,-5191.2482,0.00013899,2]
[330724074,1719737821700,-734.09027284,0.00013899,2]
[330724075,1719737821724,-533.28582048,0.00013899,2]
[330724076,1719737821749,-1216.77,0.00013907,3]
[330724077,1719737821773,-654.28,0.00013907,3]
[330724078,1719737821798,-3743.21,0.00013907,3]
[330724079,1719737821824,-153.02,0.00013945,2]
[330724080,1719737821848,-196.142897,0.00013973,2]
[330724081,1719737821874,-153.02,0.00013994,2]
[330724082,1719737821898,-500.0,0.00013998,3]
[330724083,1719737821927,-1214.79,0.00013998,3]
[330724084,1719737821954,-867.47,0.00013998,3]
[330724085,1719737821979,-500.0,0.00013998,3]
[330724086,1719737822006,-500.0,0.00013998,3]
[330724087,1719737822031,-643.59,0.00013998,3]
[330724088,1719737822055,-1293.6,0.00013998,3]
[330724089,1719737822083,-987.23,0.00013998,3]
[330724090,1719737822108,-500.81,0.00013998,3]
[330724091,1719737822134,-799.47,0.00013998,3]
[330724092,1719737822160,-831.31,0.00013998,3]
[330724093,1719737822186,-1071.18,0.00013998,3]
[330724094,1719737822212,-973.87,0.00013998,3]
[330724095,1719737822238,-655.14,0.00013998,3]
[330724096,1719737822263,-500.0,0.00013998,3]
[330724097,1719737822289,-946.47,0.00013998,3]
[330724098,1719737822315,-952.14,0.00013998,3]
[330724099,1719737822339,-500.0,0.00013998,3]
[330724100,1719737822365,-500.0,0.00013998,3]
[330724101,1719737822390,-919.06,0.00013998,3]
[330724102,1719737822414,-1138.3,0.00013998,3]
[330724103,1719737822439,-829.74,0.00013998,3]
[330724104,1719737822464,-500.0,0.00013998,3]
[330724105,1719737822489,-500.0,0.00013998,3]
[330724106,1719737822513,-951.75,0.00013998,3]
[330724107,1719737822538,-1049.33,0.00013998,3]
[330724108,1719737822564,-500.0,0.00013998,3]
[330724109,1719737822588,-500.0,0.00013998,3]
[330724110,1719737822612,-542.85,0.00013998,3]
[330724111,1719737822639,-838.89,0.00013998,3]
[330724112,1719737822664,-1243.56,0.00013998,3]
[330724113,1719737822690,-701.24,0.00013998,3]
[330724114,1719737822716,-871.63,0.00013998,3]
[330724115,1719737822741,-940.21,0.00013998,3]
[330724116,1719737822766,-675.54,0.00013998,3]
[330724117,1719737822791,-500.0,0.00013998,3]
[330724118,1719737822815,-500.0,0.00013998,3]
[330724119,1719737822840,-714.5,0.00013998,3]
[330724120,1719737822865,-646.19,0.00013998,3]
[330724121,1719737822890,-500.0,0.00013998,3]
[330724122,1719737822919,-500.0,0.00013998,2]
[330724123,1719737822949,-500.0,0.00013998,3]